Cogmind - Beta 12 @@@ ROGUE MODE // 2023.10.16 @ 08:35:46 Player: Beans Result: Destroyed by G-34 Mercenary with Small Laser Performance ------------- Evolutions (1) 500 Regions Visited (4) 800 Robots Destroyed (13) 65 Value Destroyed (517) 517 Prototype IDs (2) 40 Alien Tech Used (0) 0 Bonus (200) 200 TOTAL SCORE: 2122 Bonus ------- Entered Garrisons 200 Cogmind --------- Core Integrity 0/400 Matter 232/300 Energy 100/100 System Corruption 0% Temperature Cool (18) Movement Core (50) Location -9/Garrison Parts ------- > --- POWER (1) -------- (None) > --- PROPULSION (2) --- (None) > --- UTILITY (4) ------ Visual Processing Unit Signal Interpreter > --- WEAPON (2) ------- (None) > --- INVENTORY (5) ---- Relay Coupler [NC] (26) Light Assault Rifle Grenade Launcher Peak State ------------ > --- POWER ------------ Light Ion Engine > --- PROPULSION ------- Flight Unit Flight Unit > --- UTILITY ---------- Visual Processing Unit Signal Interpreter ECM Suite > --- WEAPON ----------- Light Assault Rifle Light Assault Rifle > --- INVENTORY -------- Light Ion Engine Flight Unit Flight Unit Grenade Launcher Mining Laser [Rating: 9] Favorites ----------- Power Light Ion Engine Engine Light Ion Engine Propulsion Flight Unit Leg Aluminum Leg Flight Unit Flight Unit Utility Signal Interpreter Device ECM Suite Storage Small Storage Unit Processor Signal Interpreter Weapon Light Assault Rifle Energy Gun Medium Laser Ballistic Gun Light Assault Rifle Launcher Grenade Launcher Special Weapon Mining Laser Build | -11 -10 -9 -9 -9 ------- Run | Jun Mat Mat Sto Gar Slots Evolved 2 | . . 2 . . Power . | . . . . . Propulsion . | . . . . . Utility 2 | . . 2 . . Weapon . | . . . . . Parts Attached 25 | 8 8 3 . 6 Power 2 | 1 . . . 1 Engine 2 | 1 . . . 1 Core . | . . . . . Reactor . | . . . . . Propulsion 7 | 2 2 . . 3 Treads . | . . . . . Leg 2 | 2 . . . . Wheel . | . . . . . Hover . | . . . . . Flight 5 | . 2 . . 3 Utility 5 | 2 2 1 . . Device 2 | 1 . 1 . . Storage 1 | 1 . . . . Processor 2 | . 2 . . . Hackware . | . . . . . Protection . | . . . . . Artifact . | . . . . . Weapon 11 | 3 4 2 . 2 Energy Gun 1 | 1 . . . . Energy Cannon . | . . . . . Ballistic Gun 6 | 2 3 1 . . Ballistic Cannon . | . . . . . Launcher 1 | . . . . 1 Special Weapon 3 | . 1 1 . 1 Impact Weapon . | . . . . . Slashing Weapon . | . . . . . Piercing Weapon . | . . . . . Special Melee Weapon . | . . . . . Unidentified Prototypes . | . . . . . Parts Lost 7 | . . . . 7 Power 1 | . . . . 1 Propulsion 4 | . . . . 4 Utility 1 | . . . . 1 Weapon 1 | . . . . 1 Highest Loss Streak 6 | . . . . 6 To Critical Strikes . | . . . . . Average Slot Usage (%) 87 | . 97 82 88 73 Engine 11 | . 14 11 11 7 Leg 3 | . 8 . . . Flight 19 | . 19 22 22 18 Device 6 | . 4 5 11 9 Storage 2 | . 4 . . . Processor 20 | . 18 22 22 22 Ballistic Gun 20 | . 26 22 22 11 Special Weapon 1 | . 1 . . 3 Naked Turns . | . . . . . Heaviest Build 13 | 13 13 7 7 7 Greatest Support 20 | 20 20 8 8 8 Greatest Overweight (x) 1 | 1 1 . . . Average Overweight (x) . | . . . . . Largest Inventory Capacity 8 | 8 8 5 5 5 Average Capacity 5 | 7 5 5 5 5 Most Carried 8 | 4 8 5 5 5 Average Carried 4 | 1 5 5 5 4 Final Capacity 8 | 8 5 5 5 5 Final Carried 5 | 4 5 5 5 3 Class Distribution -------------------- 57% | Scavenger-Mutant 42% | Mutant Dominant Class ---------------- Scavenger-Mutant | -10/Materials Scavenger-Mutant | -9/Materials Scavenger-Mutant | -9/Storage Mutant | -9/Garrison Resources | -11 -10 -9 -9 -9 ----------- Run | Jun Mat Mat Sto Gar Matter Collected 484 | 384 100 . . . Remotely . | . . . . . Salvage Created 266 | 163 88 . . 15 Parts 30 | 12 15 . . 3 Haulers Intercepted . | . . . . . Recyclers Shooed . | . . . . . Parts Field Recycled . | . . . . . Retrieved Matter . | . . . . . Parts Self-Destructed . | . . . . . Prevented . | . . . . . Kills | -11 -10 -9 -9 -9 ------- Run | Jun Mat Mat Sto Gar Combat Hostiles Destroyed 7 | . 3 . . 4 Guns 3 | . 3 . . . AOE 4 | . . . . 4 Classes Destroyed 5 | 3 2 . . . Worker 2 | 2 . . . . Tunneler 1 | 1 . . . . Recycler 1 | 1 . . . . Watcher 2 | . 2 . . . Swarmer 7 | . 3 . . 4 Best Kill Streak 4 | 2 4 . . 4 Combat Bots Only 4 | . 3 . . 4 Max Kills in Single Turn 2 | 1 2 . . 2 Gunslinging . | . . . . . Exploded 2 | . . . . 2 Melee . | . . . . . Uniques/NPCs Destroyed . | . . . . . Combat | -11 -10 -9 -9 -9 -------- Run | Jun Mat Mat Sto Gar Damage Taken 811 | . 89 55 11 656 Core 411 | . 10 15 . 386 Absorbed by Shields 32 | . . . . 32 Core Remaining (%) 98 | 100 96 . . . Volleys Fired 28 | 6 14 1 . 7 Largest 2 | 2 2 2 . 2 Hottest 120 | 40 100 120 . 100 Shots Fired 50 | 12 26 2 . 10 Gun 43 | 12 24 1 . 6 Cannon . | . . . . . Launcher 2 | . . . . 2 Special 5 | . 2 1 . 2 Kinetic 43 | 12 24 1 . 6 Thermal 5 | . 2 1 . 2 Explosive 2 | . . . . 2 Electromagnetic . | . . . . . Robot Hit Streak 4 | 2 4 . . . Robot Miss Streak 3 | 1 3 . . 1 Penetration Max . | . . . . . Secondary Targets . | . . . . . Shots Hit Robots 18 | 6 12 . . . Core Hits 18 | 5 7 . . 6 Critical Kills . | . . . . . Critical Parts Destroyed . | . . . . . Critical Strikes . | . . . . . Melee Attacks . | . . . . . Impact . | . . . . . Slashing . | . . . . . Piercing . | . . . . . Sneak Attacks . | . . . . . Combat Hostiles . | . . . . . Follow-up Attacks . | . . . . . Damage Inflicted 469 | 74 131 . . 264 Guns 205 | 74 131 . . . Cannons . | . . . . . Explosions 229 | . . . . 229 Melee . | . . . . . Ramming 35 | . . . . 35 Kinetic 205 | 74 131 . . . Thermal . | . . . . . Explosive 229 | . . . . 229 Electromagnetic . | . . . . . Impact . | . . . . . Slashing . | . . . . . Piercing . | . . . . . Highest Corruption . | . . . . . Average Corruption . | . . . . . Corruption Purged . | . . . . . Corruption Blocked . | . . . . . Overload Shots . | . . . . . Overflow Damage 28 | . . . . 28 Projectiles . | . . . . . Explosions 28 | . . . . 28 Melee . | . . . . . Knockbacks . | . . . . . Impact . | . . . . . Kinetic . | . . . . . Secondary . | . . . . . Self-Inflicted Damage 15 | . . . . 15 Shots . | . . . . . Rammed 13 | . . . . 13 Targets Rammed 13 | . . . . 13 Kicked . | . . . . . Crushed . | . . . . . Highest Temperature 58 | . 58 36 . 18 Average Temperature 16 | . 17 21 . 9 Received Heat Transfer 293 | . 21 18 6 248 Siege Activations . | . . . . . Robots Corrupted . | . . . . . Combat Hostiles . | . . . . . Parts Fried . | . . . . . Impact Corruptions . | . . . . . Robots Melted . | . . . . . Combat Hostiles . | . . . . . Parts Melted . | . . . . . Heat Transferred . | . . . . . Parts Sabotaged . | . . . . . Parts Stolen . | . . . . . Parts Stripped . | . . . . . Power Chain Reactions . | . . . . . Missiles Intercepted . | . . . . . Alert | -11 -10 -9 -9 -9 ------- Run | Jun Mat Mat Sto Gar Peak Influence 326 | 20 228 232 148 326 Initial 97 | . 13 96 97 96 Average 137 | 6 129 177 119 216 Maximum Alert Level 1 | . 1 1 . 1 Low Security (%) 66 | 100 82 41 100 29 Level 1 33 | . 17 58 . 70 Level 2 . | . . . . . Level 3 . | . . . . . Level 4 . | . . . . . Level 5 . | . . . . . High Security . | . . . . . Max Security . | . . . . . Squads Dispatched 3 | . 2 . 1 . Investigation 1 | . . . 1 . Extermination . | . . . . . Reinforcement 2 | . 2 . . . Assault . | . . . . . Garrison . | . . . . . Intercept . | . . . . . Searches Triggered . | . . . . . Construction Impeded . | . . . . . Haulers Reinforced . | . . . . . Active Scanning Responses . | . . . . . Cargo Convoy Interrupts . | . . . . . Stealth | -11 -10 -9 -9 -9 --------- Run | Jun Mat Mat Sto Gar Distress Signals 4 | . 2 1 1 . Communications Jammed . | . . . . . Distress Signals . | . . . . . Times Spotted 45 | . 11 10 4 20 Peak Tracking Total 13 | . 5 5 6 13 Tactical Retreats 5 | . . 2 . 3 Traps | -11 -10 -9 -9 -9 ------- Run | Jun Mat Mat Sto Gar Traps Triggered 1 | . . . . 1 Indirectly . | . . . . . Trap Hack Attempts . | . . . . . Triggered . | . . . . . Disarmed . | . . . . . Reprogrammed . | . . . . . Reused . | . . . . . Traps Extracted . | . . . . . Installed . | . . . . . Triggered . | . . . . . Machines | -11 -10 -9 -9 -9 ---------- Run | Jun Mat Mat Sto Gar Machines Disabled 2 | . . . . 2 Max in Single Turn 1 | . . . . 1 Garrison Relay 2 | . . . . 2 Machines Repaired . | . . . . . Machines Sabotaged . | . . . . . Overloaded Fab Kills . | . . . . . Hacking | -11 -10 -9 -9 -9 --------- Run | Jun Mat Mat Sto Gar Machines Accessed 13 | . 7 2 3 1 Terminals 12 | . 7 2 2 1 Fabricators . | . . . . . Repair Stations . | . . . . . Recycling Units . | . . . . . Scanalyzers . | . . . . . Garrison Access 1 | . . . 1 . Total Hacks 47 | . 25 11 8 3 Successful 25 | . 17 6 2 . Failed 22 | . 8 5 6 3 Catastrophic 4 | . 2 1 1 . Database Lockouts . | . . . . . Manual 35 | . 21 8 6 . Terminals 46 | . 25 11 7 3 Fabricators . | . . . . . Repair Stations . | . . . . . Recycling Units . | . . . . . Scanalyzers . | . . . . . Garrison Access 1 | . . . 1 . Terminal Hacks 11 | . 7 4 . . Robot Analysis 1 | . . 1 . . Prototype ID Bank 1 | . 1 . . . Terminal Index 2 | . 1 1 . . Locate Traps 1 | . 1 . . . Dispatch Records 1 | . 1 . . . Investigation Status 1 | . . 1 . . Recall Reinforcements 1 | . 1 . . . Zone Layout 3 | . 2 1 . . Fabricator Hacks . | . . . . . Repair Station Hacks . | . . . . . Recycling Unit Hacks . | . . . . . Scanalyzer . | . . . . . Garrison Access Hacks 1 | . . . 1 . Unlock Access 1 | . . . 1 . Unauthorized Hacks 13 | . 10 2 1 . Terminals 13 | . 10 2 1 . Track 2 | . 2 . . . Assimilate 2 | . 1 . 1 . Botnet 9 | . 7 2 . . Fabricators . | . . . . . Repair Stations . | . . . . . Recycling Units . | . . . . . Scanalyzers . | . . . . . Garrison Access . | . . . . . Data Cores Recovered . | . . . . . Used . | . . . . . Hacking Detections 11 | . 6 2 2 1 Full Trace Events 1 | . . . 1 . Feedback Events . | . . . . . Feedback Blocked . | . . . . . Robot Schematics Acquired . | . . . . . Robots Built . | . . . . . Authchips . | . . . . . Time . | . . . . . Total Robot Build Rating . | . . . . . Part Schematics Acquired . | . . . . . Parts Built . | . . . . . Authchips . | . . . . . Time . | . . . . . Total Part Build Rating . | . . . . . Parts Repaired . | . . . . . Time . | . . . . . Parts Recycled . | . . . . . Recycled Matter . | . . . . . Retrieved Matter . | . . . . . Retrieved Components . | . . . . . Parts Scanalyzed . | . . . . . Part Schematics Acquired . | . . . . . Parts Damaged . | . . . . . Bothacking | -11 -10 -9 -9 -9 ------------ Run | Jun Mat Mat Sto Gar Used RIF Installer . | . . . . . Robots Hacked . | . . . . . Non-combat . | . . . . . Combat . | . . . . . Robot Hacks Applied . | . . . . . Relay Couplers Released 10 | . . . . 10 Machine Destruction 10 | . . . . 10 Fabnet Peak Effective % . | . . . . . Robots Rewired . | . . . . . Allies Hacked . | . . . . . Hacks Repelled . | . . . . . Allies | -11 -10 -9 -9 -9 -------- Run | Jun Mat Mat Sto Gar Total Allies . | . . . . . Largest Group . | . . . . . Highest-Rated Group . | . . . . . Highest-Rated Ally . | . . . . . Total Orders . | . . . . . Ally Attacks . | . . . . . Total Damage . | . . . . . Kills . | . . . . . Allies Corrupted . | . . . . . Allies Melted . | . . . . . Intel | -11 -10 -9 -9 -9 ------- Run | Jun Mat Mat Sto Gar Robot Analysis Total 1 | . . 1 . . Derelict Logs Recovered . | . . . . . Drone Launches . | . . . . . Drone Recoveries . | . . . . . Exploration | -11 -10 -9 -9 -9 ------------- Run | Jun Mat Mat Sto Gar Turns Passed 736 | 125 277 129 30 175 Spaces Moved 1001 | 78 345 264 62 252 Core 36 | 9 . . . 27 Treads . | . . . . . Legs 115 | 69 46 . . . Wheels . | . . . . . Hover . | . . . . . Flight 850 | . 299 264 62 225 Fastest Speed 37 | 50 37 37 37 37 Average Speed 47 | 117 48 37 37 38 Slowest Speed 120 | 120 120 37 37 50 Overloaded Moves . | . . . . . Propulsion Burnouts . | . . . . . Robots Hopped 10 | . 5 3 . 2 Cave-ins Triggered . | . . . . . Exploration Rate (%) 33 | 4 68 32 16 45 Regions Visited 4 Branch Regions 1 Pre-discovered Areas . | . . . . . Known Exits Taken 3 | . 1 1 1 . Unknown Exits Taken 1 | 1 . . . . Scrap Searched . | . . . . . Spaces Dug 3 | . 2 1 . . Terrain Destroyed 3 | . 2 1 . . Melee . | . . . . . Projectile 3 | . 2 1 . . AOE . | . . . . . Terrain Rammed . | . . . . . Walls Destroyed . | . . . . . Machines Disabled . | . . . . . Actions | -11 -10 -9 -9 -9 --------- Run | Jun Mat Mat Sto Gar Total 1188 | 95 424 286 69 314 Wait 93 | . 45 22 7 19 Move 978 | 77 334 257 62 248 Hop 9 | . 5 3 . 1 Pick Up 13 | 4 7 . . 2 Fast Attach 13 | 7 4 1 . 1 Attach 5 | . 2 . . 3 Detach 4 | . 3 . . 1 Swap 8 | 1 2 2 . 3 Drop 10 | . 8 . . 2 Fire 28 | 6 14 1 . 7 Melee . | . . . . . Ram 13 | . . . . 13 Kick . | . . . . . Crush . | . . . . . Escape Stasis 13 | . . . . 13 Rewire 1 | . . . . 1 Trap . | . . . . . Miscellaneous . | . . . . . Route ------- -11/Junkyard -10/Materials (discovered 2 exits: *Mat / [*Min]) -9/Materials -9/Storage -9/Garrison (discovered 1 exit: *Rec) History --------- Turn | Location | Event 7 | -11/Junkyard | Discovered new exit (range 16) 126 | -11/Junkyard | Entered Materials 235 | -10/Materials | Discovered new exit (range 15) 391 | -10/Materials | Discovered new exit (range 3) 392 | -10/Materials | Identified exit to Materials 403 | -10/Materials | Entered another Materials area 403 | -9/Materials | Evolved 2 slots: Utility x2 442 | -9/Materials | Discovered new exit (range 8) 506 | -9/Materials | Build established: Scavenger-Mutant 532 | -9/Materials | Identified exit to Storage 532 | -9/Materials | Entered Storage 562 | -9/Storage | Identified exit to Garrison 562 | -9/Storage | Entered Garrison 594 | -9/Garrison | Garrison Relay disabled 608 | -9/Garrison | Triggered checkpoint 613 | -9/Garrison | Garrison Relay disabled 658 | -9/Garrison | Triggered checkpoint 695 | -9/Garrison | Discovered new exit (range 11) 699 | -9/Garrison | Identified exit to Recycling 699 | -9/Garrison | Attempted to access garrison exit controls, blocked by remote lockdown 704 | -9/Garrison | Triggered checkpoint 717 | -9/Garrison | Core integrity fell below 50% 734 | -9/Garrison | Core integrity fell below 20% 737 | -9/Garrison | Destroyed by G-34 Mercenary with Small Laser Last Messages --------------- 00695_ EXIT=FOUND 00699_ EXIT=IDENTIFIED: RECYCLING 00699_ Attempting to access garrison exit controls... 00699_ Remote lockdown engaged. 00704_ Beams of light sweep through the air. An alarm sounds. 00706_ Flight Unit destroyed. 00711_ Lgt. Assault Rifle destroyed. 00711_ Slammed into L-31 Rogue. 00711_ Destabilizing: System interference. 00711_ Signal Interpreter temporarily disabled. 00711_ Visual Processing Unit temporarily disabled. 00712_ Slammed into L-31 Rogue. 00716_ ECM Suite destroyed. 00716_ Slammed into L-31 Rogue. 00716_ Visual Processing Unit broken. 00716_ Destabilizing: Short circuit. 00729_ Attempting to rewire M-14 Sweeper. 00729_ M-14 Sweeper is unpowered. 00730_ Slammed into L-31 Rogue. 00733_ Slammed into G-34 Mercenary. Map ----- +----------------------------------------------------+ | ######## #???????????????????????????? | | ## [| ##T###??????# #???????????????????????????? | | ##[% ####????????# #???????????????????????????? | | #######???????????# #???????????????????????????? | | #?????????????????# #???????????????????????????? | | #?????????????????# #???????????????????????????? | | #?????????????????# #???????????????????????????? | | #?????????????????# #???????????????????????????? | | #?????????????????# #???????????????????????????? | | #?????????????????# #???????????????????????????? | | #?????????????????# #???????????????????????????? | | #?????????????????# #???????????????????????????? | | #?????????????????# #???????????????????????????? | | #?????????????????# #???????????????????????????? | | ??????????????????# #???????????????????????????? | | ??????????????????# #???????????????????????????? | | ??????????????????# #???????#####???????????????? | | ??????????????????# #???????# #???????????????? | | ??????????????????# ######### > ###########?????? | | ??????????????????# #?????? | | ??????????????????# #?????? | | ??????????????????######## ############# #?????? | | ??????????????????????#### g##??????????# #?????? | | ???????????????????#### ggg ####?????### #?????? | | ???????????????????# #?????# #?????? | | ???????????????????# """"@g"""" #?????# #?????? | | ????????????????????????" g"????#?????# #?????? | | ????????????????????????"l "????#?????### ###???? | | ???????????????????# """" """" #???????# #"#???? | | ???????????????????# ^ #???????# "#???? | | ???????????????????# #???????# "#???? | | ???????????????????# """" """" #???????# "#???? | | ???????????????????#????" "????#???????# #"#???? | | ????????????????????????" "????????????######???? | | ???????????????????# """" """" #????????????????? | | ???????????????????# #????????????????? | | ???????????????????##############????????????????? | | ?????????????????????????????????????????????????? | | ?????????????????????????????????????????????????? | | ?????????????????????????????????????????????????? | | ?????????????????????????????????????????????????? | | ?????????????????????????????????????????????????? | | ?????????????????????????????????????????????????? | | ?????????????????????????????????????????????????? | | | | | | | | | | | | | +----------------------------------------------------+ Best States ------------- Heat Dissipation 28 Energy Generation 10 Energy Capacity 125 Matter Stores 300 Matter Capacity 300 Sight Range 18 Terrain Scan Density 10 ECM Strength 1 Evasion (%) 62 Item Schematics ----------------- None Robot Schematics ------------------ None Fabricated ------------ Nothing Alien Tech Used ----------------- None Achievements -------------- None Challenges ------------ None Game ------ Seed HeartDamperScreen Manual? 0 Play Time 00:33:21 Cumulative 74.8 hours Start 2023.10.15 @ 21:19:21 End 2023.10.16 @ 08:35:46 Sessions 2 Manual Loads 0 Difficulty Rogue Special Mode None Game No. 70 Rogue 70 Adventurer 0 Explorer 0 Win Type - Total 0 Types 0/0/0/0/0/0/0/0/0 Lore% 26 Gallery% 37 Achievement% 32 Wizard Run 0 Options --------- ASCII 1 Keyboard 1 Movement Vi Keybinds 1 Fullscreen 2 Font 24/Smallcaps Map View 76x50 Tactical HUD 1 Map Filters NONE Filters NONE Steam 1 RUN: abfb7d9b-e4b0-4044-beae-879757ca47e8